fUSD/lending_fUSD_20260617
["ID","MTS","AMOUNT","RATE_DAILY","PERIOD"]
[425229954,1781627458000,-331.11703337,0.00032876,7]
[425229989,1781627458000,-1000.0,0.00032877,10]
[425229982,1781627458000,-1000.0,0.00032877,10]
[425229984,1781627458000,-1000.0,0.00032877,10]
[425229987,1781627458000,-1000.0,0.00032877,10]
[425229992,1781627458000,-1000.0,0.00032877,10]
[425229990,1781627458000,-1000.0,0.00032877,10]
[425229986,1781627458000,-1000.0,0.00032877,10]
[425229988,1781627458000,-1000.0,0.00032877,10]
[425229993,1781627458000,-1000.0,0.00032877,10]
[425229991,1781627458000,-1000.0,0.00032877,10]
[425229995,1781627458000,-1000.0,0.00032877,10]
[425229994,1781627458000,-1000.0,0.00032877,10]
[425229998,1781627458000,-1000.0,0.00032877,10]
[425229997,1781627458000,-1000.0,0.00032877,10]
[425230002,1781627458000,-1000.0,0.00032877,10]
[425230004,1781627458000,-1000.0,0.00032877,10]
[425229999,1781627458000,-1000.0,0.00032877,10]
[425230001,1781627458000,-1000.0,0.00032877,10]
[425230000,1781627458000,-1000.0,0.00032877,10]
[425229996,1781627458000,-1000.0,0.00032877,10]
[425230003,1781627458000,-1000.0,0.00032877,10]
[425229959,1781627458000,-500.0,0.00032876,70]
[425229980,1781627458000,-703.09,0.00032877,2]
[425229977,1781627458000,-151.0,0.00032877,7]
[425229985,1781627458000,-1000.0,0.00032877,10]
[425229979,1781627458000,-165.154885,0.00032877,7]
[425229958,1781627458000,-500.0,0.00032876,70]
[425229956,1781627458000,-364.96216307,0.00032876,120]
[425229963,1781627458000,-500.0,0.00032876,70]
[425229957,1781627458000,-500.0,0.00032876,70]
[425229960,1781627458000,-500.0,0.00032876,70]
[425229961,1781627458000,-500.0,0.00032876,70]
[425229962,1781627458000,-500.0,0.00032876,70]
[425229983,1781627458000,-1000.0,0.00032877,10]
[425229972,1781627458000,-151.0,0.00032877,7]
[425229965,1781627458000,-151.0,0.00032877,7]
[425229968,1781627458000,-151.0,0.00032877,7]
[425229970,1781627458000,-151.0,0.00032877,7]
[425229964,1781627458000,-173.46902805,0.00032876,70]
[425229976,1781627458000,-151.0,0.00032877,7]
[425229966,1781627458000,-151.0,0.00032877,7]
[425229971,1781627458000,-151.0,0.00032877,7]
[425229969,1781627458000,-227.627658,0.00032877,7]
[425229967,1781627458000,-151.0,0.00032877,7]
[425229975,1781627458000,-151.0,0.00032877,7]
[425229974,1781627458000,-151.0,0.00032877,7]
[425229978,1781627458000,-151.0,0.00032877,7]
[425229981,1781627458000,-351.75,0.00032877,2]
[425229973,1781627458000,-151.0,0.00032877,7]
[425230042,1781627459000,-1000.0,0.00032877,10]
[425230043,1781627459000,-1000.0,0.00032877,10]
[425230041,1781627459000,-1000.0,0.00032877,10]
[425230040,1781627459000,-1000.0,0.00032877,10]
[425230029,1781627459000,-1000.0,0.00032877,10]
[425230036,1781627459000,-1000.0,0.00032877,10]
[425230030,1781627459000,-1000.0,0.00032877,10]
[425230028,1781627459000,-1000.0,0.00032877,10]
[425230038,1781627459000,-1000.0,0.00032877,10]
[425230035,1781627459000,-1000.0,0.00032877,10]
[425230037,1781627459000,-1000.0,0.00032877,10]
[425230051,1781627459000,-1000.0,0.00032877,10]
[425230044,1781627459000,-1000.0,0.00032877,10]
[425230046,1781627459000,-1000.0,0.00032877,10]
[425230045,1781627459000,-1000.0,0.00032877,10]
[425230047,1781627459000,-1000.0,0.00032877,10]
[425230050,1781627459000,-1000.0,0.00032877,10]
[425230052,1781627459000,-1000.0,0.00032877,10]
[425230048,1781627459000,-1000.0,0.00032877,10]
[425230054,1781627459000,-1000.0,0.00032877,10]
[425230049,1781627459000,-1000.0,0.00032877,10]
[425230053,1781627459000,-1000.0,0.00032877,10]
[425230031,1781627459000,-1000.0,0.00032877,10]
[425230039,1781627459000,-1000.0,0.00032877,10]
[425230034,1781627459000,-1000.0,0.00032877,10]
[425230005,1781627459000,-1000.0,0.00032877,10]
[425230032,1781627459000,-1000.0,0.00032877,10]
[425230007,1781627459000,-1000.0,0.00032877,10]
[425230010,1781627459000,-1000.0,0.00032877,10]
[425230009,1781627459000,-1000.0,0.00032877,10]
[425230006,1781627459000,-1000.0,0.00032877,10]
[425230008,1781627459000,-1000.0,0.00032877,10]
[425230011,1781627459000,-1000.0,0.00032877,10]
[425230013,1781627459000,-1000.0,0.00032877,10]
[425230012,1781627459000,-1000.0,0.00032877,10]
[425230015,1781627459000,-1000.0,0.00032877,10]
[425230016,1781627459000,-1000.0,0.00032877,10]
[425230033,1781627459000,-1000.0,0.00032877,10]
[425230014,1781627459000,-1000.0,0.00032877,10]
[425230017,1781627459000,-1000.0,0.00032877,10]
[425230018,1781627459000,-1000.0,0.00032877,10]
[425230019,1781627459000,-1000.0,0.00032877,10]
[425230021,1781627459000,-1000.0,0.00032877,10]
[425230023,1781627459000,-1000.0,0.00032877,10]
[425230022,1781627459000,-1000.0,0.00032877,10]
[425230024,1781627459000,-1000.0,0.00032877,10]
[425230025,1781627459000,-1000.0,0.00032877,10]
[425230026,1781627459000,-1000.0,0.00032877,10]
[425230027,1781627459000,-1000.0,0.00032877,10]
[425230020,1781627459000,-1000.0,0.00032877,10]
[425230056,1781627459000,-175.66856672,0.00032877,7]
[425230100,1781627459000,-251.24,0.000329,14]
[425230059,1781627459000,-800.0,0.00032877,120]
[425230085,1781627459000,-500.0,0.00032894,7]
[425230082,1781627459000,-256.01,0.00032883,8]
[425230087,1781627459000,-500.0,0.00032894,7]
[425230089,1781627459000,-500.0,0.00032894,7]
[425230088,1781627459000,-500.0,0.00032894,7]
[425230098,1781627459000,-182.85,0.000329,120]
[425230090,1781627459000,-500.0,0.00032894,7]
[425230096,1781627459000,-1158.95632604,0.000329,120]
[425230093,1781627459000,-500.0,0.00032894,7]
[425230092,1781627459000,-500.0,0.00032894,7]
[425230097,1781627459000,-225.83,0.000329,120]
[425230095,1781627459000,-409.92050658,0.00032894,7]
[425230091,1781627459000,-500.0,0.00032894,7]
[425230099,1781627459000,-1276.9,0.000329,120]
[425230101,1781627459000,-180.06,0.000329,120]
[425230103,1781627459000,-17269.91714149,0.00032947,2]
[425230102,1781627459000,-2467.96,0.000329,7]
[425230106,1781627459000,-500.0,0.00032955,2]
[425230104,1781627459000,-150.0,0.00032955,2]
[425230108,1781627459000,-510.19461224,0.00032955,2]
[425230107,1781627459000,-500.0,0.00032955,2]
[425230055,1781627459000,-671.0,0.00032877,10]
[425230105,1781627459000,-291.10825601,0.00032955,2]
[425230086,1781627459000,-500.0,0.00032894,7]
[425230078,1781627459000,-204.59,0.00032883,8]
[425230094,1781627459000,-500.0,0.00032894,7]
[425230081,1781627459000,-214.8,0.00032883,8]
[425230058,1781627459000,-351.33713345,0.00032877,7]
[425230084,1781627459000,-500.0,0.00032894,7]
[425230065,1781627459000,-150.0,0.00032877,7]
[425230061,1781627459000,-702.6742669,0.00032877,7]
[425230062,1781627459000,-4500.0,0.00032877,120]
[425230060,1781627459000,-527.00570017,0.00032877,7]
[425230063,1781627459000,-600.0,0.00032877,120]
[425230064,1781627459000,-600.0,0.00032877,120]
[425230066,1781627459000,-600.0,0.00032877,120]
[425230068,1781627459000,-500.0,0.00032877,2]
[425230071,1781627459000,-500.0,0.00032877,2]
[425230072,1781627459000,-500.0,0.00032877,2]
[425230057,1781627459000,-644.23,0.00032877,120]
[425230070,1781627459000,-500.0,0.00032877,2]
[425230069,1781627459000,-500.0,0.00032877,2]
[425230080,1781627459000,-165.05,0.00032883,8]
[425230079,1781627459000,-202.27,0.00032883,8]
[425230077,1781627459000,-191.86,0.00032883,8]
[425230075,1781627459000,-692.997147,0.00032877,120]
[425230083,1781627459000,-500.0,0.00032894,7]
[425230067,1781627459000,-600.0,0.00032877,120]
[425230076,1781627459000,-570.94,0.00032883,8]
[425230073,1781627459000,-432.90113079,0.00032877,2]
[425230074,1781627459000,-500.0,0.00032877,2]
[425230149,1781627460000,-840.68,0.00033046,120]
[425230136,1781627460000,-393.0,0.00033023,30]
[425230137,1781627460000,-2396.0,0.00033023,30]
[425230141,1781627460000,-377.0,0.00033033,2]
[425230146,1781627460000,-377.0,0.00033046,30]
[425230140,1781627460000,-441.36,0.00033029,2]
[425230133,1781627460000,-2535.0,0.00033017,30]
[425230142,1781627460000,-973.0,0.00033046,30]
[425230135,1781627460000,-541.0,0.00033023,30]
[425230148,1781627460000,-202.0,0.00033046,30]
[425230150,1781627460000,-293.0,0.00033061,30]
[425230144,1781627460000,-529.0,0.00033046,30]
[425230143,1781627460000,-567.0,0.00033046,30]
[425230145,1781627460000,-1674.0,0.00033046,30]
[425230158,1781627460000,-1121.28,0.00033107,30]
[425230159,1781627460000,-171.22760372,0.00033111,2]
[425230154,1781627460000,-150.0,0.0003308,2]
[425230156,1781627460000,-150.0,0.0003308,2]
[425230160,1781627460000,-177.29346989,0.00033118,7]
[425230155,1781627460000,-150.0,0.0003308,2]
[425230151,1781627460000,-161.203,0.00033075,2]
[425230132,1781627460000,-3000.0,0.00033017,30]
[425230147,1781627460000,-915.0,0.00033046,30]
[425230138,1781627460000,-3632.0,0.00033023,30]
[425230109,1781627460000,-52401.34156385,0.00033,2]
[425230134,1781627460000,-541.0,0.00033022,30]
[425230157,1781627460000,-150.0,0.0003308,2]
[425230110,1781627460000,-260.42644329,0.00033,7]
[425230111,1781627460000,-3696.44004959,0.00033,2]
[425230113,1781627460000,-3533.39500903,0.00033,120]
[425230112,1781627460000,-1260.21680397,0.00033,120]
[425230114,1781627460000,-3000.0,0.00033,20]
[425230118,1781627460000,-1000.0,0.00033,120]
[425230115,1781627460000,-4000.0,0.00033,14]
[425230117,1781627460000,-2529.7403102,0.00033,2]
[425230116,1781627460000,-735.25945859,0.00033,120]
[425230119,1781627460000,-150.0,0.00033,120]
[425230121,1781627460000,-506.1479905,0.00033,120]
[425230122,1781627460000,-575.569879,0.00033,14]
[425230120,1781627460000,-1000.0,0.00033,40]
[425230123,1781627460000,-5000.0,0.00033,120]
[425230129,1781627460000,-3000.0,0.00033017,30]
[425230126,1781627460000,-252.12,0.00033,14]
[425230124,1781627460000,-5000.0,0.00033,120]
[425230127,1781627460000,-725.0,0.00033011,8]
[425230128,1781627460000,-3000.0,0.00033017,30]
[425230125,1781627460000,-5000.0,0.00033,120]
[425230131,1781627460000,-3000.0,0.00033017,30]
[425230130,1781627460000,-3000.0,0.00033017,30]
[425230139,1781627460000,-462.0,0.00033023,30]
[425230153,1781627460000,-150.0,0.0003308,2]
[425230202,1781627460000,-187.70558984,0.00033361,7]
[425230162,1781627460000,-214.69421179,0.00033123,120]
[425230187,1781627460000,-500.0,0.00033144,60]
[425230186,1781627460000,-412.04357124,0.00033144,60]
[425230193,1781627460000,-396.315218,0.00033259,10]
[425230189,1781627460000,-2467.96,0.000332,7]
[425230192,1781627460000,-597.18410789,0.00033252,14]
[425230204,1781627460000,-422.41917228,0.00033431,7]
[425230203,1781627460000,-278.56878641,0.000334,60]
[425230201,1781627460000,-174.62736627,0.00033361,7]
[425230195,1781627460000,-150.332889,0.00033289,2]
[425230194,1781627460000,-440.0,0.00033259,10]
[425230196,1781627460000,-4000.0,0.000333,14]
[425230199,1781627460000,-250.0,0.00033333,120]
[425230198,1781627460000,-152.0,0.000333,120]
[425230200,1781627460000,-1953.9,0.00033351,5]
[425230205,1781627460000,-878.34283362,0.00033449,7]
[425230206,1781627460000,-768.125459,0.00033477,120]
[425230210,1781627460000,-500.0,0.00033501,120]
[425230208,1781627460000,-1237.31110491,0.000335,2]
[425230207,1781627460000,-410.0,0.00033496,2]
[425230209,1781627460000,-2467.96,0.000335,7]
[425230211,1781627460000,-150.0,0.00033541,2]
[425230212,1781627460000,-151.435,0.00033541,2]
[425230152,1781627460000,-150.0,0.0003308,2]
[425230184,1781627460000,-350.0,0.00033143,28]
[425230185,1781627460000,-700.0,0.00033144,60]
[425230197,1781627460000,-1083.65123079,0.000333,120]
[425230188,1781627460000,-773.927335,0.00033177,120]
[425230191,1781627460000,-152.0,0.00033247,20]
[425230161,1781627460000,-190.57136376,0.00033118,7]
[425230163,1781627460000,-331.30711113,0.00033123,120]
[425230164,1781627460000,-260.38126434,0.00033123,120]
[425230165,1781627460000,-213.53128106,0.00033123,120]
[425230166,1781627460000,-173.12947453,0.00033123,120]
[425230167,1781627460000,-268.2088367,0.00033123,120]
[425230168,1781627460000,-218.49821119,0.00033123,120]
[425230171,1781627460000,-392.6361912,0.00033123,120]
[425230169,1781627460000,-165.96606259,0.00033123,120]
[425230172,1781627460000,-249.23964057,0.00033123,120]
[425230173,1781627460000,-360.49164135,0.00033123,120]
[425230170,1781627460000,-224.31567651,0.00033123,120]
[425230174,1781627460000,-165.52134323,0.00033123,120]
[425230178,1781627460000,-508.68568741,0.00033123,120]
[425230179,1781627460000,-226.62288355,0.00033123,120]
[425230176,1781627460000,-532.09129204,0.00033123,120]
[425230177,1781627460000,-500.0,0.00033123,120]
[425230183,1781627460000,-200.0,0.0003313,4]
[425230190,1781627460000,-637.91,0.00033203,7]
[425230181,1781627460000,-232.55712209,0.00033123,120]
[425230175,1781627460000,-313.45149781,0.00033123,120]
[425230180,1781627460000,-306.52100598,0.00033123,120]
[425230182,1781627460000,-2062.76,0.00033126,30]
[425230253,1781627461000,-12989.46857538,0.0003392,2]
[425230239,1781627461000,-191.7,0.0003384,14]
[425230243,1781627461000,-166.72,0.0003384,14]
[425230248,1781627461000,-2153.80556002,0.000339,2]
[425230245,1781627461000,-173.17567378,0.00033853,7]
[425230244,1781627461000,-350.0,0.00033841,6]
[425230249,1781627461000,-1276.9,0.000339,120]
[425230254,1781627461000,-440.0,0.00033944,10]
[425230251,1781627461000,-17269.91714149,0.000339,2]
[425230255,1781627461000,-700.0,0.00033966,60]
[425230259,1781627461000,-1000.0,0.00033982,7]
[425230260,1781627461000,-1000.0,0.00033987,7]
[425230268,1781627461000,-150.0,0.00034,120]
[425230258,1781627461000,-1000.0,0.00033977,7]
[425230256,1781627461000,-150.0,0.00033973,2]
[425230257,1781627461000,-1000.0,0.00033973,7]
[425230252,1781627461000,-1659.51,0.00033909,7]
[425230261,1781627461000,-1000.0,0.00033992,7]
[425230270,1781627461000,-392.48104184,0.00034,120]
[425230267,1781627461000,-41942.43986867,0.00034,2]
[425230264,1781627461000,-448287.29700902,0.00034,2]
[425230262,1781627461000,-1000.0,0.00033997,7]
[425230263,1781627461000,-80570.58386577,0.00034,120]
[425230271,1781627461000,-307.64,0.00034,120]
[425230240,1781627461000,-191.7,0.0003384,14]
[425230250,1781627461000,-465.7033,0.000339,30]
[425230241,1781627461000,-166.73,0.0003384,14]
[425230226,1781627461000,-150.0,0.00033763,30]
[425230247,1781627461000,-152.0,0.00033882,21]
[425230214,1781627461000,-725.0,0.00033545,9]
[425230215,1781627461000,-213.83348652,0.00033561,14]
[425230213,1781627461000,-150.0,0.00033544,2]
[425230266,1781627461000,-600.0,0.00034,120]
[425230217,1781627461000,-173.91149401,0.00033606,7]
[425230216,1781627461000,-599.95,0.000336,120]
[425230218,1781627461000,-186.93610434,0.00033606,7]
[425230219,1781627461000,-350.0,0.00033616,31]
[425230221,1781627461000,-300.0,0.00033699,10]
[425230220,1781627461000,-3646.0,0.00033656,2]
[425230222,1781627461000,-300.0,0.00033699,10]
[425230223,1781627461000,-300.0,0.00033699,10]
[425230225,1781627461000,-715.65704942,0.00033753,2]
[425230224,1781627461000,-2062.76,0.00033748,30]
[425230227,1781627461000,-597.18410789,0.00033771,14]
[425230228,1781627461000,-756.548051,0.00033777,120]
[425230231,1781627461000,-2467.96,0.000338,7]
[425230230,1781627461000,-155.04356876,0.000338,120]
[425230229,1781627461000,-16633.29148667,0.00033797,2]
[425230236,1781627461000,-150.0,0.00033815,2]
[425230232,1781627461000,-377.0,0.00033801,2]
[425230233,1781627461000,-350.0,0.00033806,7]
[425230235,1781627461000,-150.0,0.00033815,2]
[425230234,1781627461000,-150.0,0.00033815,2]
[425230237,1781627461000,-150.0,0.00033815,2]
[425230238,1781627461000,-150.0,0.00033815,2]
[425230242,1781627461000,-166.73,0.0003384,14]
[425230246,1781627461000,-186.14517694,0.00033853,7]
[425230269,1781627461000,-1000.0,0.00034,50]
[425230265,1781627461000,-26366.61133282,0.00034,2]
[425230272,1781627461000,-679.571454,0.00034,120]
[425230303,1781627461000,-1000.0,0.00034016,7]
[425230302,1781627461000,-1000.0,0.00034011,7]
[425230309,1781627461000,-3632.0,0.00034023,30]
[425230306,1781627461000,-541.0,0.00034023,30]
[425230305,1781627461000,-541.0,0.00034022,30]
[425230304,1781627461000,-1000.0,0.00034021,7]
[425230312,1781627461000,-658.72,0.00034028,7]
[425230313,1781627461000,-188.955378,0.0003403,7]
[425230311,1781627461000,-1000.0,0.00034025,7]
[425230314,1781627461000,-188.955378,0.0003403,7]
[425230322,1781627461000,-307.957345,0.0003403,7]
[425230315,1781627461000,-188.955378,0.0003403,7]
[425230323,1781627461000,-151.0,0.0003403,7]
[425230316,1781627461000,-188.955378,0.0003403,7]
[425230317,1781627461000,-301.88273,0.0003403,7]
[425230321,1781627461000,-301.88273,0.0003403,7]
[425230318,1781627461000,-301.88273,0.0003403,7]
[425230319,1781627461000,-301.88273,0.0003403,7]
[425230320,1781627461000,-307.957345,0.0003403,7]
[425230327,1781627461000,-399.757887,0.0003403,7]
[425230324,1781627461000,-307.957345,0.0003403,7]
[425230330,1781627461000,-399.757887,0.0003403,7]
[425230325,1781627461000,-307.957345,0.0003403,7]
[425230331,1781627461000,-345.327613,0.0003403,7]
[425230326,1781627461000,-399.757887,0.0003403,7]
[425230328,1781627461000,-156.562957,0.0003403,7]
[425230277,1781627461000,-206.380469,0.00034,7]
[425230310,1781627461000,-462.0,0.00034023,30]
[425230301,1781627461000,-1000.0,0.00034006,7]
[425230329,1781627461000,-345.327613,0.0003403,7]
[425230298,1781627461000,-2582.67,0.00034,30]
[425230300,1781627461000,-1000.0,0.00034001,7]
[425230283,1781627461000,-151.0,0.00034,7]
[425230278,1781627461000,-151.0,0.00034,7]
[425230274,1781627461000,-206.380469,0.00034,7]
[425230275,1781627461000,-206.380469,0.00034,7]
[425230280,1781627461000,-151.0,0.00034,7]
[425230284,1781627461000,-151.0,0.00034,7]
[425230273,1781627461000,-151.0,0.00034,7]
[425230279,1781627461000,-151.0,0.00034,7]
[425230281,1781627461000,-228.411404,0.00034,7]
[425230282,1781627461000,-151.0,0.00034,7]
[425230286,1781627461000,-151.0,0.00034,7]
[425230290,1781627461000,-151.0,0.00034,7]
[425230276,1781627461000,-206.380469,0.00034,7]
[425230285,1781627461000,-151.0,0.00034,7]
[425230307,1781627461000,-393.0,0.00034023,30]
[425230308,1781627461000,-2396.0,0.00034023,30]
[425230299,1781627461000,-400.0,0.00034,60]
[425230293,1781627461000,-294.481292,0.00034,7]
[425230297,1781627461000,-750.0,0.00034,2]
[425230292,1781627461000,-294.481292,0.00034,7]
[425230295,1781627461000,-151.0,0.00034,7]
[425230294,1781627461000,-294.481292,0.00034,7]
[425230289,1781627461000,-151.0,0.00034,7]
[425230296,1781627461000,-8623.5397169,0.00034,3]
[425230288,1781627461000,-151.0,0.00034,7]
[425230287,1781627461000,-151.0,0.00034,7]
[425230291,1781627461000,-294.481292,0.00034,7]
[425230369,1781627462000,-700.0,0.00034061,8]
[425230366,1781627462000,-420.0,0.00034061,7]
[425230367,1781627462000,-420.0,0.00034061,7]
[425230365,1781627462000,-420.0,0.00034061,7]
[425230371,1781627462000,-1000.0,0.00034069,7]
[425230364,1781627462000,-293.0,0.00034061,30]
[425230363,1781627462000,-1000.0,0.00034059,7]
[425230361,1781627462000,-1000.0,0.00034054,7]
[425230372,1781627462000,-451.04630341,0.00034071,2]
[425230370,1781627462000,-1000.0,0.00034064,7]
[425230368,1781627462000,-420.0,0.00034061,7]
[425230373,1781627462000,-1000.0,0.00034074,7]
[425230375,1781627462000,-739.582513,0.00034078,120]
[425230376,1781627462000,-1000.0,0.00034078,7]
[425230383,1781627462000,-170.39118463,0.00034102,7]
[425230379,1781627462000,-1000.0,0.00034088,7]
[425230378,1781627462000,-1000.0,0.00034083,7]
[425230377,1781627462000,-725.0,0.00034079,9]
[425230374,1781627462000,-350.0,0.00034076,34]
[425230380,1781627462000,-1000.0,0.00034093,7]
[425230381,1781627462000,-1000.0,0.00034098,7]
[425230385,1781627462000,-1000.0,0.00034102,7]
[425230386,1781627462000,-1000.0,0.00034107,7]
[425230387,1781627462000,-1000.0,0.00034112,7]
[425230362,1781627462000,-187.07680487,0.00034057,30]
[425230382,1781627462000,-2467.96,0.000341,7]
[425230355,1781627462000,-377.0,0.00034046,30]
[425230344,1781627462000,-201.195806,0.0003403,7]
[425230360,1781627462000,-1000.0,0.0003405,7]
[425230333,1781627462000,-345.327613,0.0003403,7]
[425230332,1781627462000,-399.757887,0.0003403,7]
[425230334,1781627462000,-203.614014,0.0003403,7]
[425230336,1781627462000,-203.614014,0.0003403,7]
[425230384,1781627462000,-183.15215134,0.00034102,7]
[425230346,1781627462000,-201.195806,0.0003403,7]
[425230347,1781627462000,-1000.0,0.0003403,7]
[425230335,1781627462000,-345.327613,0.0003403,7]
[425230337,1781627462000,-203.614014,0.0003403,7]
[425230342,1781627462000,-154.360703,0.0003403,7]
[425230339,1781627462000,-154.360703,0.0003403,7]
[425230341,1781627462000,-154.360703,0.0003403,7]
[425230352,1781627462000,-567.0,0.00034046,30]
[425230338,1781627462000,-203.614014,0.0003403,7]
[425230340,1781627462000,-154.360703,0.0003403,7]
[425230345,1781627462000,-201.195806,0.0003403,7]
[425230348,1781627462000,-1000.0,0.00034035,7]
[425230349,1781627462000,-1000.0,0.0003404,7]
[425230350,1781627462000,-1000.0,0.00034045,7]
[425230356,1781627462000,-915.0,0.00034046,30]
[425230353,1781627462000,-529.0,0.00034046,30]
[425230351,1781627462000,-973.0,0.00034046,30]
[425230354,1781627462000,-1674.0,0.00034046,30]
[425230359,1781627462000,-261.95,0.00034046,120]
[425230358,1781627462000,-1047.83,0.00034046,120]
[425230357,1781627462000,-202.0,0.00034046,30]
[425230343,1781627462000,-201.195806,0.0003403,7]
[425230392,1781627462000,-1000.0,0.00034131,7]
[425230445,1781627462000,-300.08939589,0.0003425,2]
[425230390,1781627462000,-1000.0,0.00034126,7]
[425230423,1781627462000,-1888.26790747,0.00034226,2]
[425230420,1781627462000,-250.0,0.00034224,7]
[425230421,1781627462000,-250.0,0.00034224,7]
[425230422,1781627462000,-1888.26790747,0.00034226,2]
[425230424,1781627462000,-1000.0,0.00034227,7]
[425230425,1781627462000,-1000.0,0.00034232,7]
[425230426,1781627462000,-1000.0,0.00034237,7]
[425230427,1781627462000,-8057.36996626,0.00034238,2]
[425230430,1781627462000,-5210.0,0.00034241,10]
[425230429,1781627462000,-150.15,0.00034239,120]
[425230437,1781627462000,-300.10865586,0.0003425,2]
[425230438,1781627462000,-300.10192344,0.0003425,2]
[425230431,1781627462000,-1000.0,0.00034242,7]
[425230440,1781627462000,-300.08922461,0.0003425,2]
[425230434,1781627462000,-1631.38176645,0.00034247,7]
[425230435,1781627462000,-600.0,0.00034247,120]
[425230432,1781627462000,-800.0,0.00034247,120]
[425230436,1781627462000,-500.0,0.0003425,2]
[425230433,1781627462000,-600.0,0.00034247,120]
[425230441,1781627462000,-300.0,0.0003425,2]
[425230442,1781627462000,-300.11091846,0.0003425,2]
[425230444,1781627462000,-300.0893059,0.0003425,2]
[425230446,1781627462000,-300.10253715,0.0003425,2]
[425230443,1781627462000,-300.0,0.0003425,2]
[425230391,1781627462000,-252.37919093,0.0003413,4]
[425230428,1781627462000,-8057.36996626,0.00034238,2]
[425230419,1781627462000,-250.0,0.00034224,7]
[425230439,1781627462000,-300.0,0.0003425,2]
[425230417,1781627462000,-250.0,0.00034224,7]
[425230418,1781627462000,-250.0,0.00034224,7]
[425230388,1781627462000,-1000.0,0.00034117,7]
[425230394,1781627462000,-1000.0,0.00034141,7]
[425230389,1781627462000,-1000.0,0.00034122,7]
[425230393,1781627462000,-1000.0,0.00034136,7]
[425230395,1781627462000,-1000.0,0.00034146,7]
[425230399,1781627462000,-1000.0,0.00034165,7]
[425230397,1781627462000,-1000.0,0.00034155,7]
[425230400,1781627462000,-1000.0,0.0003417,7]
[425230404,1781627462000,-1000.0,0.00034184,7]
[425230402,1781627462000,-1000.0,0.00034174,7]
[425230398,1781627462000,-1000.0,0.0003416,7]
[425230401,1781627462000,-212.82135112,0.0003417,14]
[425230396,1781627462000,-1000.0,0.0003415,7]
[425230415,1781627462000,-1734.78,0.00034219,2]
[425230412,1781627462000,-365.13,0.00034212,120]
[425230405,1781627462000,-153.0545,0.00034188,2]
[425230414,1781627462000,-1000.0,0.00034218,7]
[425230416,1781627462000,-1000.0,0.00034223,7]
[425230413,1781627462000,-1000.0,0.00034213,7]
[425230410,1781627462000,-1000.0,0.00034203,7]
[425230409,1781627462000,-1000.0,0.00034199,7]
[425230408,1781627462000,-1000.0,0.00034194,7]
[425230407,1781627462000,-150.0,0.0003419,2]
[425230406,1781627462000,-1000.0,0.00034189,7]
[425230403,1781627462000,-1000.0,0.00034179,7]
[425230411,1781627462000,-1000.0,0.00034208,7]
[425230475,1781627463000,-300.0,0.0003425,2]
[425230489,1781627463000,-300.0,0.0003425,2]
[425230485,1781627463000,-1099.56265256,0.0003425,2]
[425230486,1781627463000,-300.10376797,0.0003425,2]
[425230487,1781627463000,-300.0,0.0003425,2]
[425230477,1781627463000,-300.09656303,0.0003425,2]
[425230478,1781627463000,-300.0,0.0003425,2]
[425230484,1781627463000,-300.0,0.0003425,2]